[Event "GER-ch Blitz 2019"]
[Site "Magdeburg"]
[Date "2019.05.25"]
[Round "12.15"]
[White "Frischmann, Rick"]
[Black "Hirneise, Jens"]
[Result "1-0"]
[ECO "B31"]
[WhiteElo "2320"]
[BlackElo "2375"]
[Annotator "NA"]
[PlyCount "147"]
[EventDate "2019.05.25"]
[EventType "tourn"]
[EventCountry "GER"]
[Tiebreak "Number of wins+Number of black wins"]
[SourceTitle "playchess.com"]
[Source "ChessBase"]
[SourceQuality "1"]
[TimeControl "180+2"]

1. e4 {[%emt 0:00:00]} c5 {[%emt 0:00:00]} 2. Nf3 {[%emt 0:00:01]} Nc6 {
[%emt 0:00:00]} 3. Bb5 {[%emt 0:00:01]} g6 {[%emt 0:00:00]} 4. Bxc6 dxc6 {
[%emt 0:00:01]} 5. d3 {[%emt 0:00:02]} Bg7 {[%emt 0:00:01]} 6. h3 {[%emt 0:00:
01]} Nf6 {[%emt 0:00:05]} 7. Nc3 {[%emt 0:00:01]} O-O {[%emt 0:00:06]} 8. Be3 {
[%emt 0:00:01]} b6 {[%emt 0:00:03]} 9. Qd2 {[%emt 0:00:03]} e5 {[%emt 0:00:19]}
10. Bh6 {[%emt 0:00:07]} Qd6 {[%emt 0:00:09]} 11. Bxg7 {[%emt 0:00:04]} Kxg7 {
[%emt 0:00:01]} 12. O-O {[%emt 0:00:01]} Nd7 {[%emt 0:00:05]} 13. Nh2 {[%emt 0:
00:07]} f6 {[%emt 0:00:11]} 14. Ng4 {[%emt 0:00:33]} Nb8 {[%emt 0:00:09]} 15.
Qh6+ {[%emt 0:00:02]} Kg8 {[%emt 0:00:02]} 16. f4 {[%emt 0:00:06]} Bxg4 {
[%emt 0:00:10]} 17. hxg4 {[%emt 0:00:00]} exf4 {[%emt 0:00:22]} 18. Rxf4 {
[%emt 0:00:03]} Nd7 {[%emt 0:00:02]} 19. Raf1 {[%emt 0:00:03]} Rae8 {[%emt 0:
00:16]} 20. Kh1 {[%emt 0:00:13]} Qe5 {[%emt 0:00:10]} 21. Nd1 {[%emt 0:00:05]}
Qd6 {[%emt 0:00:33]} 22. Ne3 {[%emt 0:00:06]} Ne5 {[%emt 0:00:03]} 23. Qh2 {
[%emt 0:00:22]} Rf7 {[%emt 0:00:09]} 24. Qg3 {[%emt 0:00:13]} Ref8 {[%emt 0:00:
03]} 25. R4f2 {[%emt 0:00:24]} Kg7 {[%emt 0:00:09]} 26. Qf4 {[%emt 0:00:21]}
Kg8 {[%emt 0:00:05]} 27. a3 {[%emt 0:00:04]} Kg7 {[%emt 0:00:05]} 28. Rd1 {
[%emt 0:00:23]} Rd7 {[%emt 0:00:12]} 29. Kg1 {[%emt 0:00:07]} Nf7 {[%emt 0:00:
09]} 30. Qf3 {[%emt 0:00:08]} Ng5 {[%emt 0:00:05]} 31. Qe2 {[%emt 0:00:08]} Qg3
{[%emt 0:00:04]} 32. Kf1 {[%emt 0:00:05]} h5 {[%emt 0:00:06]} 33. gxh5 {
[%emt 0:00:02]} Rh8 {[%emt 0:00:01]} 34. e5 {[%emt 0:00:05]} Qxe5 {[%emt 0:00:
05]} 35. Ng4 {[%emt 0:00:05]} Qxe2+ {[%emt 0:00:03]} 36. Kxe2 Re7+ {[%emt 0:00:
03]} 37. Kd2 {[%emt 0:00:01]} Rxh5 {[%emt 0:00:03]} 38. Nxf6 {[%emt 0:00:01]}
Rh2 {[%emt 0:00:01]} 39. Rdf1 {[%emt 0:00:01]} Ne6 {[%emt 0:00:03]} 40. Ne4 {
[%emt 0:00:01]} Nd4 {[%emt 0:00:02]} 41. c3 {[%emt 0:00:01]} Ne6 {[%emt 0:00:
02]} 42. b4 {[%emt 0:00:02]} cxb4 {[%emt 0:00:01]} 43. axb4 {[%emt 0:00:01]}
Rd7 {[%emt 0:00:01]} 44. Kc2 {[%emt 0:00:01]} Rh8 {[%emt 0:00:03]} 45. Kb3 {
[%emt 0:00:01]} Rhd8 {[%emt 0:00:01]} 46. d4 {[%emt 0:00:01]} c5 {[%emt 0:00:
02]} 47. Nf6 {[%emt 0:00:00]} Rc7 {[%emt 0:00:04]} 48. d5 {[%emt 0:00:01]} c4+
{[%emt 0:00:01]} 49. Kb2 {[%emt 0:00:01]} Ng5 {[%emt 0:00:01]} 50. d6 {[%emt 0:
00:05]} Rf7 {[%emt 0:00:02]} 51. d7 {[%emt 0:00:06]} Rxf6 {[%emt 0:00:05]} 52.
Rxf6 {[%emt 0:00:01]} Rxd7 53. R6f2 {[%emt 0:00:06]} Ne4 {[%emt 0:00:02]} 54.
Rc2 {[%emt 0:00:02]} Ng3 {[%emt 0:00:04]} 55. Rf4 {[%emt 0:00:02]} Rc7 {
[%emt 0:00:01]} 56. b5 {[%emt 0:00:01]} Nf5 {[%emt 0:00:01]} 57. Re2 {[%emt 0:
00:01]} Nd6 {[%emt 0:00:02]} 58. Re5 {[%emt 0:00:02]} Rb7 {[%emt 0:00:04]} 59.
Ka3 {[%emt 0:00:01]} Rc7 {[%emt 0:00:01]} 60. Kb4 {[%emt 0:00:00]} Nc8 {
[%emt 0:00:02]} 61. Rd4 {[%emt 0:00:01]} Ne7 {[%emt 0:00:01]} 62. g4 {[%emt 0:
00:02]} Ng8 {[%emt 0:00:02]} 63. Re8 {[%emt 0:00:06]} Nf6 {[%emt 0:00:02]} 64.
Red8 {[%emt 0:00:01]} Kf7 {[%emt 0:00:02]} 65. g5 {[%emt 0:00:02]} Nh5 {
[%emt 0:00:02]} 66. R8d7+ {[%emt 0:00:02]} Rxd7 67. Rxd7+ Ke6 {[%emt 0:00:02]}
68. Rxa7 {[%emt 0:00:03]} Nf4 {[%emt 0:00:01]} 69. Rb7 {[%emt 0:00:01]} Kf5 {
[%emt 0:00:03]} 70. Kxc4 {[%emt 0:00:02]} Kxg5 {[%emt 0:00:01]} 71. Rxb6 {
[%emt 0:00:01]} Kf5 {[%emt 0:00:01]} 72. Rd6 {[%emt 0:00:02]} g5 {[%emt 0:00:
01]} 73. b6 {[%emt 0:00:01]} g4 {[%emt 0:00:01]} 74. b7 {[%emt 0:00:02]} 1-0

[Event "GER-ch Blitz 2019"]
[Site "Magdeburg"]
[Date "2019.05.25"]
[Round "13.1"]
[White "Gustafsson, Jan"]
[Black "Koch, Thomas"]
[Result "1/2-1/2"]
[ECO "A17"]
[WhiteElo "2639"]
[BlackElo "2474"]
[Annotator "ChessBase"]
[PlyCount "99"]
[EventDate "2019.05.25"]
[EventType "tourn"]
[EventCountry "GER"]
[Tiebreak "Number of wins+Number of black wins"]
[SourceTitle "playchess.com"]
[Source "ChessBase"]
[SourceQuality "1"]
[TimeControl "180+2"]

1. Nf3 {[%emt 0:00:00]} Nf6 {[%emt 0:00:00]} 2. c4 {[%emt 0:00:02]} e6 {
[%emt 0:00:05]} 3. Nc3 {[%emt 0:00:01]} Bb4 {[%emt 0:00:03]} 4. Qc2 {[%emt 0:
00:01]} O-O {[%emt 0:00:03]} 5. a3 {[%emt 0:00:01]} Bxc3 {[%emt 0:00:01]} 6.
Qxc3 {[%emt 0:00:02]} b6 {[%emt 0:00:05]} 7. e3 {[%emt 0:00:01]} Bb7 {[%emt 0:
00:03]} 8. Be2 {[%emt 0:00:02]} d6 {[%emt 0:00:06]} 9. b4 {[%emt 0:00:01]} c5 {
[%emt 0:00:10]} 10. Bb2 {[%emt 0:00:02]} Nbd7 {[%emt 0:00:02]} 11. O-O {
[%emt 0:00:03]} Rc8 {[%emt 0:00:02]} 12. d3 {[%emt 0:00:02]} Re8 {[%emt 0:00:
07]} 13. Nd2 {[%emt 0:00:02]} Qc7 14. f4 {[%emt 0:00:04]} Qb8 {[%emt 0:00:18]}
15. b5 {[%emt 0:00:10]} Rcd8 {[%emt 0:00:07]} 16. a4 {[%emt 0:00:03]} a5 {
[%emt 0:00:30]} 17. g4 {[%emt 0:00:02]} Re7 {[%emt 0:00:14]} 18. g5 {[%emt 0:
00:03]} Ne8 {[%emt 0:00:01]} 19. Bf3 {[%emt 0:00:12]} d5 {[%emt 0:00:04]} 20.
Rae1 {[%emt 0:00:09]} d4 {[%emt 0:00:04]} 21. Qc1 {[%emt 0:00:34]} dxe3 {
[%emt 0:00:01]} 22. Nb3 {[%emt 0:00:16]} Nf8 {[%emt 0:00:15]} 23. Qxe3 {
[%emt 0:00:13]} Ng6 {[%emt 0:00:06]} 24. d4 {[%emt 0:00:36]} Red7 {[%emt 0:00:
28]} 25. Bxb7 Qxb7 26. f5 {[%emt 0:00:06]} Nh4 {[%emt 0:00:06]} 27. d5 {
[%emt 0:00:03]} Nd6 {[%emt 0:00:28]} 28. fxe6 {[%emt 0:00:05]} fxe6 {[%emt 0:
00:03]} 29. Qxe6+ Rf7 {[%emt 0:00:19]} 30. Nd2 {[%emt 0:00:13]} Qd7 {[%emt 0:
00:04]} 31. Rxf7 {[%emt 0:00:09]} Qxf7 {[%emt 0:00:01]} 32. Be5 {[%emt 0:00:08]
} Qxe6 {[%emt 0:00:04]} 33. dxe6 {[%emt 0:00:01]} Ne8 {[%emt 0:00:01]} 34. Ne4
{[%emt 0:00:07]} Nf3+ {[%emt 0:00:01]} 35. Kf2 {[%emt 0:00:01]} Nxe5 {[%emt 0:
00:00]} 36. Kg3 {[%emt 0:00:13]} Ng6 {[%emt 0:00:01]} 37. h4 {[%emt 0:00:04]}
Rd3+ {[%emt 0:00:01]} 38. Kg4 {[%emt 0:00:01]} Rd4 {[%emt 0:00:01]} 39. h5 {
[%emt 0:00:03]} Nd6 {[%emt 0:00:01]} 40. hxg6 {[%emt 0:00:06]} hxg6 {[%emt 0:
00:02]} 41. Kf4 {[%emt 0:00:03]} Rxc4 {[%emt 0:00:01]} 42. Ke5 {[%emt 0:00:07]}
Rxe4+ {[%emt 0:00:01]} 43. Rxe4 {[%emt 0:00:01]} Nxe4 {[%emt 0:00:00]} 44. Kxe4
{[%emt 0:00:02]} Kf8 {[%emt 0:00:01]} 45. Ke5 {[%emt 0:00:05]} Ke7 {[%emt 0:00:
01]} 46. Kd5 {[%emt 0:00:00]} c4 {[%emt 0:00:01]} 47. Kxc4 {[%emt 0:00:02]}
Kxe6 {[%emt 0:00:01]} 48. Kd4 {[%emt 0:00:01]} Kd6 {[%emt 0:00:17]} 49. Ke4 {
[%emt 0:00:01]} Ke6 {[%emt 0:00:01]} 50. Kd4 1/2-1/2

[Event "GER-ch Blitz 2019"]
[Site "Magdeburg"]
[Date "2019.05.25"]
[Round "13.2"]
[White "Wichmann, Cliff"]
[Black "Baskin, Robert"]
[Result "0-1"]
[ECO "D37"]
[WhiteElo "2280"]
[BlackElo "2398"]
[Annotator "NA"]
[PlyCount "80"]
[EventDate "2019.05.25"]
[EventType "tourn"]
[EventCountry "GER"]
[Tiebreak "Number of wins+Number of black wins"]
[SourceTitle "playchess.com"]
[Source "ChessBase"]
[SourceQuality "1"]
[TimeControl "180+2"]

1. d4 {[%emt 0:00:00]} Nf6 {[%emt 0:00:00]} 2. c4 {[%emt 0:00:00]} e6 {[%emt 0:
00:03]} 3. Nf3 {[%emt 0:00:01]} d5 {[%emt 0:00:02]} 4. Nc3 {[%emt 0:00:02]} a6
{[%emt 0:00:18]} 5. cxd5 {[%emt 0:00:02]} exd5 {[%emt 0:00:02]} 6. Bf4 {
[%emt 0:00:01]} Bd6 {[%emt 0:00:03]} 7. Bg3 {[%emt 0:00:06]} O-O {[%emt 0:00:
02]} 8. e3 {[%emt 0:00:01]} Bf5 {[%emt 0:00:03]} 9. Bd3 {[%emt 0:00:02]} Bxd3 {
[%emt 0:00:02]} 10. Qxd3 {[%emt 0:00:01]} Re8 {[%emt 0:00:05]} 11. O-O {
[%emt 0:00:04]} Nbd7 {[%emt 0:00:02]} 12. Rac1 {[%emt 0:00:03]} Bxg3 {[%emt 0:
00:06]} 13. hxg3 {[%emt 0:00:02]} c6 {[%emt 0:00:01]} 14. b4 {[%emt 0:00:04]}
Ne4 {[%emt 0:00:09]} 15. a4 {[%emt 0:00:04]} b5 {[%emt 0:00:06]} 16. Ne5 {
[%emt 0:00:32]} Nxe5 {[%emt 0:00:19]} 17. dxe5 {[%emt 0:00:02]} Rxe5 {[%emt 0:
00:08]} 18. Nxe4 {[%emt 0:00:10]} Rxe4 {[%emt 0:00:01]} 19. Rxc6 {[%emt 0:00:
01]} bxa4 {[%emt 0:00:22]} 20. Rc5 {[%emt 0:00:44]} Rxb4 {[%emt 0:00:07]} 21.
Rxd5 {[%emt 0:00:01]} Qe8 {[%emt 0:00:14]} 22. Rd1 {[%emt 0:00:05]} Rbb8 {
[%emt 0:00:02]} 23. Rd7 {[%emt 0:00:17]} h6 {[%emt 0:00:13]} 24. Qc4 {[%emt 0:
00:17]} a3 {[%emt 0:00:10]} 25. Qa2 {[%emt 0:00:06]} Rd8 {[%emt 0:00:29]} 26.
R7d3 {[%emt 0:00:29]} Qe7 {[%emt 0:00:07]} 27. Kh2 {[%emt 0:00:20]} a5 {
[%emt 0:00:10]} 28. f3 {[%emt 0:00:13]} a4 {[%emt 0:00:08]} 29. e4 {[%emt 0:00:
01]} h5 {[%emt 0:00:08]} 30. Rd5 {[%emt 0:00:02]} h4 {[%emt 0:00:11]} 31. gxh4
{[%emt 0:00:01]} Qxh4+ {[%emt 0:00:01]} 32. Kg1 {[%emt 0:00:00]} Rxd5 {[%emt 0:
00:03]} 33. exd5 {[%emt 0:00:03]} Qb4 {[%emt 0:00:04]} 34. d6 {[%emt 0:00:03]}
Rd8 {[%emt 0:00:01]} 35. d7 {[%emt 0:00:01]} Qb6+ {[%emt 0:00:01]} 36. Kh1 {
[%emt 0:00:04]} Qh6+ {[%emt 0:00:00]} 37. Kg1 {[%emt 0:00:01]} Qe3+ {[%emt 0:
00:01]} 38. Kh1 {[%emt 0:00:01]} Qb3 {[%emt 0:00:01]} 39. Qd2 {[%emt 0:00:02]}
a2 {[%emt 0:00:00]} 40. Qg5 {[%emt 0:00:01]} Qxd1+ 0-1

[Event "GER-ch Blitz 2019"]
[Site "Magdeburg"]
[Date "2019.05.25"]
[Round "13.3"]
[White "Buhmann, Rainer"]
[Black "Feuerstack, Aljoscha"]
[Result "1-0"]
[ECO "A57"]
[WhiteElo "2573"]
[BlackElo "2441"]
[Annotator "ChessBase"]
[PlyCount "109"]
[EventDate "2019.05.25"]
[EventType "tourn"]
[EventCountry "GER"]
[Tiebreak "Number of wins+Number of black wins"]
[SourceTitle "playchess.com"]
[Source "ChessBase"]
[SourceQuality "1"]
[TimeControl "180+2"]

1. d4 {[%emt 0:00:00]} Nf6 {[%emt 0:00:00]} 2. c4 {[%emt 0:00:01]} c5 {[%emt 0:
00:00]} 3. d5 {[%emt 0:00:01]} b5 {[%emt 0:00:01]} 4. cxb5 {[%emt 0:00:02]} a6
{[%emt 0:00:01]} 5. b6 {[%emt 0:00:01]} Bb7 {[%emt 0:00:11]} 6. Nc3 {[%emt 0:
00:04]} d6 {[%emt 0:00:06]} 7. e4 {[%emt 0:00:06]} g6 {[%emt 0:00:05]} 8. Nf3 {
[%emt 0:00:03]} Bg7 {[%emt 0:00:03]} 9. a4 {[%emt 0:00:13]} Qxb6 {[%emt 0:00:
07]} 10. a5 {[%emt 0:00:02]} Qa7 {[%emt 0:00:14]} 11. Bc4 {[%emt 0:00:05]} O-O
{[%emt 0:00:03]} 12. O-O {[%emt 0:00:03]} Nbd7 {[%emt 0:00:03]} 13. h3 {
[%emt 0:00:10]} Rab8 {[%emt 0:00:02]} 14. Be3 {[%emt 0:00:04]} Ba8 {[%emt 0:00:
09]} 15. Qc2 {[%emt 0:00:10]} Ne8 {[%emt 0:00:03]} 16. Bg5 {[%emt 0:00:19]} Ne5
{[%emt 0:00:30]} 17. Nxe5 {[%emt 0:00:06]} Bxe5 {[%emt 0:00:02]} 18. Na4 {
[%emt 0:00:18]} Nf6 {[%emt 0:00:43]} 19. Nb6 {[%emt 0:00:07]} Rfe8 {[%emt 0:00:
18]} 20. Ra2 {[%emt 0:00:15]} Bb7 {[%emt 0:00:27]} 21. b3 {[%emt 0:00:07]} Bc8
{[%emt 0:00:01]} 22. Qd3 {[%emt 0:00:04]} Nd7 {[%emt 0:00:17]} 23. Nxc8 {
[%emt 0:00:06]} Rexc8 {[%emt 0:00:08]} 24. Bxa6 {[%emt 0:00:02]} Rc7 {[%emt 0:
00:05]} 25. Bc4 {[%emt 0:00:02]} Bd4 {[%emt 0:00:02]} 26. Bf4 {[%emt 0:00:15]}
Ne5 {[%emt 0:00:01]} 27. Bxe5 {[%emt 0:00:01]} Bxe5 {[%emt 0:00:01]} 28. f4 {
[%emt 0:00:05]} Bd4+ {[%emt 0:00:00]} 29. Kh1 {[%emt 0:00:01]} Rb4 {[%emt 0:00:
01]} 30. a6 {[%emt 0:00:04]} Rc8 {[%emt 0:00:01]} 31. Re2 {[%emt 0:00:06]} Qc7
{[%emt 0:00:04]} 32. e5 {[%emt 0:00:03]} dxe5 {[%emt 0:00:03]} 33. fxe5 {
[%emt 0:00:01]} Bxe5 {[%emt 0:00:01]} 34. Rxf7 {[%emt 0:00:15]} Qd6 {[%emt 0:
00:06]} 35. Rf1 {[%emt 0:00:05]} Ra8 {[%emt 0:00:01]} 36. Qe3 {[%emt 0:00:04]}
Bf6 {[%emt 0:00:01]} 37. Qe6+ {[%emt 0:00:02]} Qxe6 {[%emt 0:00:01]} 38. Rxe6 {
[%emt 0:00:01]} Ra7 {[%emt 0:00:05]} 39. d6 {[%emt 0:00:05]} Kg7 {[%emt 0:00:
01]} 40. dxe7 {[%emt 0:00:03]} Bxe7 {[%emt 0:00:02]} 41. Rc6 {[%emt 0:00:06]}
Bf8 {[%emt 0:00:03]} 42. Rc8 {[%emt 0:00:03]} Bd6 {[%emt 0:00:00]} 43. Rg8+ {
[%emt 0:00:03]} Kh6 {[%emt 0:00:01]} 44. Rd8 {[%emt 0:00:03]} Be7 {[%emt 0:00:
01]} 45. Re8 {[%emt 0:00:03]} Bd6 {[%emt 0:00:01]} 46. Re6 {[%emt 0:00:02]} Bg3
{[%emt 0:00:04]} 47. Rf3 {[%emt 0:00:03]} Bh4 {[%emt 0:00:03]} 48. g3 {[%emt 0:
00:01]} Be7 {[%emt 0:00:04]} 49. Kg2 {[%emt 0:00:02]} Rb8 {[%emt 0:00:01]} 50.
Rf7 {[%emt 0:00:02]} Re8 {[%emt 0:00:03]} 51. Kf3 {[%emt 0:00:08]} Rf8 {
[%emt 0:00:06]} 52. Rxf8 {[%emt 0:00:03]} Bxf8 {[%emt 0:00:01]} 53. Ke4 {
[%emt 0:00:01]} Rd7 {[%emt 0:00:01]} 54. Bd5 {[%emt 0:00:04]} Bg7 {[%emt 0:00:
04]} 55. Bb7 {[%emt 0:00:04]} 1-0

[Event "GER-ch Blitz 2019"]
[Site "Magdeburg"]
[Date "2019.05.25"]
[Round "13.4"]
[White "Voege, Tobias"]
[Black "Braeuer, Franz"]
[Result "1-0"]
[ECO "E21"]
[WhiteElo "2294"]
[BlackElo "2445"]
[Annotator "NA"]
[PlyCount "115"]
[EventDate "2019.05.25"]
[EventType "tourn"]
[EventCountry "GER"]
[Tiebreak "Number of wins+Number of black wins"]
[SourceTitle "playchess.com"]
[Source "ChessBase"]
[SourceQuality "1"]
[TimeControl "180+2"]

1. d4 {[%emt 0:00:00]} Nf6 {[%emt 0:00:00]} 2. c4 {[%emt 0:00:00]} e6 {[%emt 0:
00:00]} 3. Nc3 {[%emt 0:00:01]} Bb4 {[%emt 0:00:00]} 4. Nf3 {[%emt 0:00:01]} b6
{[%emt 0:00:01]} 5. Bg5 {[%emt 0:00:01]} h6 {[%emt 0:00:05]} 6. Bh4 {[%emt 0:
00:01]} g5 {[%emt 0:00:13]} 7. Bg3 {[%emt 0:00:01]} Bb7 {[%emt 0:00:02]} 8. e3
{[%emt 0:00:01]} Ne4 {[%emt 0:00:13]} 9. Qc2 {[%emt 0:00:01]} Bxc3+ {[%emt 0:
00:08]} 10. bxc3 {[%emt 0:00:01]} d6 {[%emt 0:00:02]} 11. Bd3 {[%emt 0:00:01]}
f5 {[%emt 0:00:01]} 12. d5 {[%emt 0:00:01]} Nd7 {[%emt 0:00:06]} 13. Nd4 Ndc5
14. dxe6 {[%emt 0:00:08]} Qf6 {[%emt 0:00:14]} 15. f3 {[%emt 0:00:02]} Nxd3+ {
[%emt 0:00:32]} 16. Qxd3 {[%emt 0:00:01]} Nc5 {[%emt 0:00:00]} 17. Qc2 {
[%emt 0:00:31]} Rf8 {[%emt 0:00:22]} 18. e7 {[%emt 0:00:34]} Kxe7 {[%emt 0:00:
30]} 19. h4 {[%emt 0:00:15]} Rae8 {[%emt 0:00:07]} 20. hxg5 {[%emt 0:00:09]}
hxg5 {[%emt 0:00:01]} 21. O-O-O {[%emt 0:00:43]} Kd8 {[%emt 0:00:01]} 22. Nb5 {
[%emt 0:00:08]} Kc8 {[%emt 0:00:18]} 23. Nxc7 {[%emt 0:00:23]} Rxe3 {[%emt 0:
00:19]} 24. Nb5 {[%emt 0:00:14]} Rd8 {[%emt 0:00:22]} 25. Bf2 {[%emt 0:00:04]}
Re6 {[%emt 0:00:05]} 26. Rh7 {[%emt 0:00:03]} a6 {[%emt 0:00:02]} 27. Bd4 {
[%emt 0:00:04]} Qf8 {[%emt 0:00:04]} 28. Nc7 {[%emt 0:00:04]} Re7 {[%emt 0:00:
03]} 29. Rxe7 {[%emt 0:00:03]} Qxe7 {[%emt 0:00:01]} 30. Nd5 {[%emt 0:00:03]}
Bxd5 {[%emt 0:00:01]} 31. cxd5 {[%emt 0:00:01]} Qd7 {[%emt 0:00:03]} 32. Bxc5 {
[%emt 0:00:02]} dxc5 {[%emt 0:00:03]} 33. c4 {[%emt 0:00:02]} Kb7 {[%emt 0:00:
01]} 34. Re1 {[%emt 0:00:01]} Re8 {[%emt 0:00:04]} 35. Rxe8 {[%emt 0:00:03]}
Qxe8 {[%emt 0:00:00]} 36. Qxf5 {[%emt 0:00:08]} Qe1+ {[%emt 0:00:01]} 37. Kc2 {
[%emt 0:00:01]} Qe2+ {[%emt 0:00:01]} 38. Kb3 {[%emt 0:00:01]} Qd1+ {[%emt 0:
00:05]} 39. Qc2 {[%emt 0:00:02]} Qd4 {[%emt 0:00:04]} 40. Qc3 {[%emt 0:00:03]}
Qd1+ {[%emt 0:00:01]} 41. Kb2 {[%emt 0:00:01]} Qe2+ {[%emt 0:00:00]} 42. Qc2 {
[%emt 0:00:01]} Qe5+ {[%emt 0:00:02]} 43. Kb1 {[%emt 0:00:02]} Qe1+ {[%emt 0:
00:02]} 44. Qc1 {[%emt 0:00:02]} Qb4+ {[%emt 0:00:01]} 45. Ka1 {[%emt 0:00:01]}
Kc7 {[%emt 0:00:04]} 46. g3 {[%emt 0:00:04]} b5 {[%emt 0:00:01]} 47. f4 {
[%emt 0:00:05]} gxf4 {[%emt 0:00:03]} 48. Qxf4+ {[%emt 0:00:02]} Kb6 {[%emt 0:
00:03]} 49. Qd6+ {[%emt 0:00:04]} Ka5 {[%emt 0:00:01]} 50. Qf4 {[%emt 0:00:10]}
Qe1+ {[%emt 0:00:02]} 51. Kb2 {[%emt 0:00:00]} Qe2+ {[%emt 0:00:01]} 52. Kc1 {
[%emt 0:00:02]} bxc4 {[%emt 0:00:03]} 53. Qd2+ {[%emt 0:00:01]} Qxd2+ {[%emt 0:
00:02]} 54. Kxd2 Kb6 55. g4 Kc7 56. g5 {[%emt 0:00:05]} Kd6 {[%emt 0:00:01]}
57. g6 Ke7 58. Kc3 {[%emt 0:00:01]} 1-0

[Event "GER-ch Blitz 2019"]
[Site "Magdeburg"]
[Date "2019.05.25"]
[Round "13.5"]
[White "Ehmann, Thilo"]
[Black "Braeuning, Rudolf Wilhelm"]
[Result "1/2-1/2"]
[ECO "B36"]
[WhiteElo "2291"]
[BlackElo "2285"]
[Annotator "NA"]
[PlyCount "99"]
[EventDate "2019.05.25"]
[EventType "tourn"]
[EventCountry "GER"]
[Tiebreak "Number of wins+Number of black wins"]
[SourceTitle "playchess.com"]
[Source "ChessBase"]
[SourceQuality "1"]
[TimeControl "180+2"]

1. e4 {[%emt 0:00:00]} c5 {[%emt 0:00:00]} 2. Nf3 {[%emt 0:00:00]} g6 {[%emt 0:
00:01]} 3. d4 {[%emt 0:00:02]} cxd4 {[%emt 0:00:01]} 4. Nxd4 {[%emt 0:00:00]}
Nc6 {[%emt 0:00:00]} 5. c4 {[%emt 0:00:01]} Nf6 {[%emt 0:00:01]} 6. Nc3 {
[%emt 0:00:01]} d6 {[%emt 0:00:01]} 7. Be2 {[%emt 0:00:03]} Nxd4 {[%emt 0:00:
03]} 8. Qxd4 {[%emt 0:00:01]} Bg7 {[%emt 0:00:01]} 9. Be3 {[%emt 0:00:02]} O-O
{[%emt 0:00:04]} 10. Qd2 {[%emt 0:00:00]} a5 {[%emt 0:00:01]} 11. O-O {[%emt 0:
00:03]} a4 {[%emt 0:00:00]} 12. Rac1 {[%emt 0:00:10]} Qa5 {[%emt 0:00:06]} 13.
Rfd1 {[%emt 0:00:04]} Be6 {[%emt 0:00:07]} 14. f3 {[%emt 0:00:27]} Rfc8 {
[%emt 0:00:02]} 15. Nb5 {[%emt 0:00:15]} Qxd2 {[%emt 0:00:21]} 16. Rxd2 {
[%emt 0:00:34]} Nd7 {[%emt 0:00:10]} 17. Nd4 {[%emt 0:00:22]} Nc5 {[%emt 0:00:
04]} 18. Nxe6 {[%emt 0:00:16]} Nxe6 {[%emt 0:00:14]} 19. Rb1 {[%emt 0:00:05]}
Nc5 {[%emt 0:00:18]} 20. Kf2 {[%emt 0:00:04]} Kf8 {[%emt 0:00:02]} 21. Bf1 {
[%emt 0:00:15]} Ra6 {[%emt 0:00:09]} 22. b4 {[%emt 0:00:12]} axb3 {[%emt 0:00:
03]} 23. axb3 {[%emt 0:00:00]} Ra3 {[%emt 0:00:07]} 24. b4 {[%emt 0:00:14]} Ne6
{[%emt 0:00:23]} 25. c5 {[%emt 0:00:17]} Rxe3 {[%emt 0:00:14]} 26. Kxe3 {
[%emt 0:00:00]} Bh6+ {[%emt 0:00:01]} 27. Ke2 {[%emt 0:00:01]} Bxd2 {[%emt 0:
00:01]} 28. Kxd2 dxc5 {[%emt 0:00:01]} 29. bxc5 {[%emt 0:00:03]} Nxc5 {[%emt 0:
00:02]} 30. Rb6 {[%emt 0:00:05]} Rc6 {[%emt 0:00:12]} 31. Rb5 {[%emt 0:00:02]}
b6 {[%emt 0:00:06]} 32. Ke3 {[%emt 0:00:01]} e6 {[%emt 0:00:08]} 33. Rb1 {
[%emt 0:00:02]} Ke7 {[%emt 0:00:04]} 34. Ra1 {[%emt 0:00:01]} Rc7 {[%emt 0:00:
04]} 35. Rb1 {[%emt 0:00:02]} Rb7 {[%emt 0:00:06]} 36. Bb5 {[%emt 0:00:01]} Ra7
{[%emt 0:00:05]} 37. Bf1 {[%emt 0:00:02]} Ra3+ {[%emt 0:00:04]} 38. Kd2 {
[%emt 0:00:08]} Rb3 {[%emt 0:00:07]} 39. Ra1 {[%emt 0:00:01]} Rb2+ {[%emt 0:00:
09]} 40. Ke3 {[%emt 0:00:01]} Kf6 {[%emt 0:00:14]} 41. Ra7 {[%emt 0:00:04]}
Rb3+ {[%emt 0:00:06]} 42. Kf2 {[%emt 0:00:02]} Nd3+ {[%emt 0:00:04]} 43. Ke3 {
[%emt 0:00:07]} Ne5+ {[%emt 0:00:06]} 44. Kf2 {[%emt 0:00:01]} Nc6 {[%emt 0:00:
03]} 45. Rc7 {[%emt 0:00:01]} Nd4 {[%emt 0:00:03]} 46. Rd7 {[%emt 0:00:01]} Nc2
{[%emt 0:00:08]} 47. Rc7 {[%emt 0:00:02]} Nd4 {[%emt 0:00:01]} 48. Rd7 {
[%emt 0:00:01]} Nc2 {[%emt 0:00:01]} 49. Rc7 {[%emt 0:00:00]} Nd4 {[%emt 0:00:
01]} 50. Rd7 1/2-1/2